Cogmind - Beta 11.1 @@@ ROGUE MODE // 2022.12.18 @ 23:40:12 Player: L1l7 Result: Destroyed by Y-45 Defender with Beam Rifle Performance ------------- Evolutions (2) 1000 Regions Visited (3) 600 Robots Destroyed (15) 75 Value Destroyed (368) 368 Prototype IDs (0) 0 Alien Tech Used (0) 0 Bonus (0) 0 TOTAL SCORE: 2043 Bonus ------- None Cogmind --------- Core Integrity 0/550 Matter 274/300 Energy 59/100 System Corruption 0% Temperature Cool (9) Movement Core (50) Location -8/Materials Parts ------- > --- POWER (1) -------- (None) > --- PROPULSION (4) --- (None) > --- UTILITY (4) ------ (None) > --- WEAPON (2) ------- (None) > --- INVENTORY (5) ---- Light Ion Engine Medium Storage Unit Machine Analyzer Peak State ------------ > --- POWER ------------ Light Nuclear Core > --- PROPULSION ------- Aluminum Leg Aluminum Leg > --- UTILITY ---------- Small Storage Unit Sensor Array > --- WEAPON ----------- Small Laser Light Assault Rifle > --- INVENTORY -------- Light Ion Engine Aluminum Leg Aluminum Leg Aluminum Leg Aluminum Leg Aluminum Leg Sensor Array [Rating: 9] Favorites ----------- Power Ion Engine Engine Ion Engine Power Core Light Nuclear Core Propulsion Aluminum Leg Leg Aluminum Leg Flight Unit Flight Unit Utility Small Storage Unit Device Sensor Array Storage Small Storage Unit Weapon Small Laser Energy Gun Small Laser Ballistic Gun Assault Rifle Special Weapon Mining Laser Build | -11 -10 -9 -8 ------- Run | Scr Mat Mat Mat Slots Evolved 4 | . . 2 2 Power . | . . . . Propulsion 2 | . . 1 1 Utility 2 | . . 1 1 Weapon . | . . . . Parts Attached 27 | 8 12 4 3 Power 4 | 2 2 . . Engine 3 | 2 1 . . Core 1 | . 1 . . Reactor . | . . . . Propulsion 9 | 2 5 1 1 Treads . | . . . . Leg 5 | 2 3 . . Wheel . | . . . . Hover . | . . . . Flight 4 | . 2 1 1 Utility 4 | 2 1 1 . Device 3 | 1 1 1 . Storage 1 | 1 . . . Processor . | . . . . Hackware . | . . . . Protection . | . . . . Artifact . | . . . . Weapon 10 | 2 4 2 2 Energy Gun 6 | 1 2 1 2 Energy Cannon . | . . . . Ballistic Gun 3 | 1 2 . . Ballistic Cannon . | . . . . Launcher . | . . . . Special Weapon 1 | . . 1 . Impact Weapon . | . . . . Slashing Weapon . | . . . . Piercing Weapon . | . . . . Special Melee Weapon . | . . . . Unidentified Prototypes . | . . . . Parts Lost 13 | . 6 1 6 Power 2 | . 2 . . Propulsion 6 | . 2 1 3 Utility 2 | . 1 . 1 Weapon 3 | . 1 . 2 Highest Loss Streak 6 | . 4 1 6 To Critical Strikes . | . . . . Average Slot Usage (%) 76 | . 91 72 22 Engine 7 | . 8 9 . Core 2 | . 3 . . Leg 15 | . 24 . . Flight 10 | . 2 31 9 Device 10 | . 11 11 7 Storage 11 | . 14 11 4 Energy Gun 6 | . 10 . . Ballistic Gun 9 | . 15 . . Special Weapon 2 | . . 8 . Naked Turns 10 | . . . 10 Heaviest Build 14 | 14 14 10 6 Greatest Support 20 | 20 20 12 8 Greatest Overweight (x) . | . . . . Average Overweight (x) . | . . . . Largest Inventory Capacity 8 | 8 8 8 8 Average Capacity 7 | 6 8 8 6 Most Carried 8 | 3 8 8 8 Average Carried 5 | 1 6 5 6 Final Capacity 8 | 8 8 8 5 Final Carried 8 | 2 8 8 3 Class Distribution -------------------- 100% | Mutant Dominant Class ---------------- Mutant | -10/Materials Mutant | -9/Materials Mutant | -8/Materials Resources | -11 -10 -9 -8 ----------- Run | Scr Mat Mat Mat Matter Collected 503 | 279 209 . 15 Remotely . | . . . . Salvage Created 568 | 109 459 . . Parts 32 | 5 27 . . Haulers Intercepted . | . . . . Recyclers Shooed 1 | . 1 . . Parts Field Recycled . | . . . . Retrieved Matter . | . . . . Parts Self-Destructed . | . . . . Prevented . | . . . . Kills | -11 -10 -9 -8 ------- Run | Scr Mat Mat Mat Combat Hostiles Destroyed 11 | . 11 . . Guns 11 | . 11 . . Classes Destroyed 6 | 2 4 . . Worker 1 | . 1 . . Tunneler 1 | 1 . . . Recycler 1 | 1 . . . Watcher 1 | . 1 . . Swarmer 3 | . 3 . . Grunt 8 | . 8 . . Best Kill Streak 5 | 2 5 . . Combat Bots Only 5 | . 5 . . Max Kills in Single Turn 1 | 1 1 . . Gunslinging . | . . . . Exploded . | . . . . Melee . | . . . . Uniques/NPCs Destroyed . | . . . . Combat | -11 -10 -9 -8 -------- Run | Scr Mat Mat Mat Damage Taken 1759 | . 852 84 823 Core 761 | . 160 45 556 Absorbed by Shields . | . . . . Core Remaining (%) 74 | 100 36 88 . Volleys Fired 52 | 4 42 4 2 Largest 2 | 2 2 1 2 Hottest 105 | 60 60 100 105 Shots Fired 95 | 8 80 4 3 Gun 91 | 8 80 . 3 Cannon . | . . . . Launcher . | . . . . Special 4 | . . 4 . Kinetic 54 | 4 50 . . Thermal 41 | 4 30 4 3 Explosive . | . . . . Electromagnetic . | . . . . Robot Hit Streak 13 | 6 13 . 6 Robot Miss Streak 3 | . 3 . 2 Penetration Max . | . . . . Secondary Targets 2 | . 2 . . Max Gunslinging Chain 1 | . 1 . . Shots Hit Robots 65 | 6 56 . 3 Core Hits 30 | 3 23 . 4 Critical Kills . | . . . . Critical Parts Destroyed . | . . . . Critical Strikes . | . . . . Melee Attacks . | . . . . Impact . | . . . . Slashing . | . . . . Piercing . | . . . . Sneak Attacks . | . . . . Combat Hostiles . | . . . . Follow-up Attacks . | . . . . Damage Inflicted 757 | 81 588 . 88 Guns 713 | 81 586 . 46 Cannons . | . . . . Explosions 42 | . . . 42 Melee . | . . . . Ramming 2 | . 2 . . Kinetic 368 | 35 333 . . Thermal 345 | 46 253 . 46 Explosive 42 | . . . 42 Electromagnetic . | . . . . Impact . | . . . . Slashing . | . . . . Piercing . | . . . . Highest Corruption 1 | . 1 . . Average Corruption 1 | . 1 . . Corruption Purged . | . . . . Corruption Blocked . | . . . . Effects 3 | . 3 . . Matter Fused 1 | . 1 . . Heat Flow Errors 1 | . 1 . . Energy Discharges 1 | . 1 . . Overload Shots . | . . . . Overflow Damage . | . . . . Projectiles . | . . . . Explosions . | . . . . Melee . | . . . . Knockbacks . | . . . . Impact . | . . . . Kinetic . | . . . . Secondary . | . . . . Self-Inflicted Damage . | . . . . Shots . | . . . . Rammed . | . . . . Targets Rammed 1 | . 1 . . Kicked 1 | . 1 . . Crushed . | . . . . Highest Temperature 237 | . 237 43 48 Average Temperature 39 | . 45 16 20 Received Heat Transfer 687 | . 372 45 270 Siege Activations . | . . . . Robots Corrupted . | . . . . Combat Hostiles . | . . . . Parts Fried . | . . . . Impact Corruptions . | . . . . Robots Melted . | . . . . Combat Hostiles . | . . . . Parts Melted . | . . . . Heat Transferred 770 | 100 600 . 70 Parts Sabotaged . | . . . . Parts Stolen . | . . . . Parts Stripped . | . . . . Power Chain Reactions . | . . . . Missiles Intercepted . | . . . . Alert | -11 -10 -9 -8 ------- Run | Scr Mat Mat Mat Peak Influence 260 | 10 260 157 87 Initial 72 | . 6 37 72 Average 86 | 3 104 106 46 Maximum Alert Level 1 | . 1 . . Low Security (%) 96 | 100 94 100 100 Level 1 3 | . 5 . . Level 2 . | . . . . Level 3 . | . . . . Level 4 . | . . . . Level 5 . | . . . . High Security . | . . . . Max Security . | . . . . Squads Dispatched 7 | . 4 . 3 Investigation 2 | . 1 . 1 Extermination . | . . . . Reinforcement 5 | . 3 . 2 Assault . | . . . . Garrison . | . . . . Intercept . | . . . . Searches Triggered . | . . . . Construction Impeded . | . . . . Haulers Reinforced . | . . . . Active Scanning Responses . | . . . . Cargo Convoy Interrupts . | . . . . Stealth | -11 -10 -9 -8 --------- Run | Scr Mat Mat Mat Distress Signals 2 | . 1 1 . Communications Jammed . | . . . . Distress Signals . | . . . . Times Spotted 42 | . 16 10 16 Peak Tracking Total 11 | . 5 8 11 Tactical Retreats 5 | . 1 2 2 Traps | -11 -10 -9 -8 ------- Run | Scr Mat Mat Mat Traps Triggered 3 | . 2 . 1 Indirectly . | . . . . Trap Hack Attempts . | . . . . Triggered . | . . . . Disarmed . | . . . . Reprogrammed . | . . . . Reused . | . . . . Traps Extracted . | . . . . Installed . | . . . . Triggered . | . . . . Machines | -11 -10 -9 -8 ---------- Run | Scr Mat Mat Mat Machines Disabled 1 | . . . 1 Max in Single Turn 1 | . . . 1 Machines Sabotaged . | . . . . Garrisons Compromised . | . . . . Overloaded Fab Kills . | . . . . Hacking | -11 -10 -9 -8 --------- Run | Scr Mat Mat Mat Machines Accessed 11 | . 3 6 2 Terminals 11 | . 3 6 2 Fabricators . | . . . . Repair Stations . | . . . . Recycling Units . | . . . . Scanalyzers . | . . . . Garrison Access . | . . . . Total Hacks 22 | . 7 10 5 Successful 15 | . 2 10 3 Failed 7 | . 5 . 2 Catastrophic 1 | . 1 . . Database Lockouts . | . . . . Manual 13 | . 4 6 3 Terminals 22 | . 7 10 5 Fabricators . | . . . . Repair Stations . | . . . . Recycling Units . | . . . . Scanalyzers . | . . . . Garrison Access . | . . . . Terminal Hacks 10 | . 2 6 2 Level Access Points 2 | . 1 1 . Branch Access Points 1 | . . 1 . Emergency Access Points 1 | . . 1 . Terminal Index 1 | . . 1 . Unreport Threat 2 | . . . 2 Reprogram Traps 1 | . . 1 . Security Status 1 | . 1 . . Zone Layout 1 | . . 1 . Fabricator Hacks . | . . . . Repair Station Hacks . | . . . . Recycling Unit Hacks . | . . . . Scanalyzer . | . . . . Garrison Access Hacks . | . . . . Unauthorized Hacks 5 | . . 4 1 Terminals 5 | . . 4 1 Assimilate 3 | . . 2 1 Operators 2 | . . 2 . Fabricators . | . . . . Repair Stations . | . . . . Recycling Units . | . . . . Scanalyzers . | . . . . Garrison Access . | . . . . Data Cores Recovered . | . . . . Used . | . . . . Hacking Detections 5 | . 3 . 2 Full Trace Events 1 | . . . 1 Feedback Events . | . . . . Feedback Blocked . | . . . . Robot Schematics Acquired . | . . . . Robots Built . | . . . . Authchips . | . . . . Time . | . . . . Total Robot Build Rating . | . . . . Part Schematics Acquired . | . . . . Parts Built . | . . . . Authchips . | . . . . Time . | . . . . Total Part Build Rating . | . . . . Parts Repaired . | . . . . Time . | . . . . Parts Recycled . | . . . . Recycled Matter . | . . . . Retrieved Matter . | . . . . Retrieved Components . | . . . . Parts Scanalyzed . | . . . . Part Schematics Acquired . | . . . . Parts Damaged . | . . . . Bothacking | -11 -10 -9 -8 ------------ Run | Scr Mat Mat Mat Used RIF Installer . | . . . . Robots Hacked . | . . . . Non-combat . | . . . . Combat . | . . . . Robot Hacks Applied . | . . . . Relay Couplers Released . | . . . . Fabnet Peak Effective % . | . . . . Robots Rewired . | . . . . Allies Hacked . | . . . . Hacks Repelled . | . . . . Allies | -11 -10 -9 -8 -------- Run | Scr Mat Mat Mat Total Allies 3 | . . 2 1 Largest Group 2 | . . 2 1 Highest-Rated Group 20 | . . 20 10 Highest-Rated Ally 10 | . . 10 10 Total Orders 2 | . . 2 . STAY 2 | . . 2 . Ally Attacks . | . . . . Total Damage . | . . . . Kills . | . . . . Allies Corrupted . | . . . . Allies Melted . | . . . . Intel | -11 -10 -9 -8 ------- Run | Scr Mat Mat Mat Robot Analysis Total . | . . . . Derelict Logs Recovered . | . . . . Drone Launches . | . . . . Drone Recoveries . | . . . . Exploration | -11 -10 -9 -8 ------------- Run | Scr Mat Mat Mat Turns Passed 865 | 98 469 191 107 Spaces Moved 873 | 61 308 309 195 Core 70 | 5 . . 65 Treads . | . . . . Legs 282 | 56 226 . . Wheels . | . . . . Hover . | . . . . Flight 521 | . 82 309 130 Fastest Speed 32 | 50 37 34 32 Average Speed 63 | 114 97 34 41 Slowest Speed 120 | 120 120 37 50 Overloaded Moves 10 | . . . 10 Propulsion Burnouts . | . . . . Robots Hopped 8 | . 2 1 5 Cave-ins Triggered . | . . . . Exploration Rate (%) 27 | 4 52 35 20 Regions Visited 3 Branch Regions . Pre-discovered Areas . | . . . . Known Exits Taken 2 | . 1 1 . Unknown Exits Taken 1 | 1 . . . Scrap Searched . | . . . . Spaces Dug 4 | . . 4 . Terrain Destroyed 25 | . . 4 21 Melee . | . . . . Projectile 4 | . . 4 . AOE 21 | . . . 21 Terrain Rammed . | . . . . Walls Destroyed . | . . . . Machines Disabled . | . . . . Actions | -11 -10 -9 -8 --------- Run | Scr Mat Mat Mat Total 1080 | 81 404 381 214 Wait 85 | . 10 60 15 Move 855 | 60 303 306 186 Hop 7 | . 2 1 4 Pick Up 34 | 9 21 2 2 Fast Attach . | . . . . Attach 24 | 7 10 4 3 Detach 4 | . 1 3 . Swap 3 | 1 2 . . Drop 15 | . 12 1 2 Fire 52 | 4 42 4 2 Melee . | . . . . Ram . | . . . . Kick 1 | . 1 . . Crush . | . . . . Escape Stasis . | . . . . Rewire . | . . . . Trap . | . . . . Miscellaneous . | . . . . Route ------- -11/Scrapyard -10/Materials (discovered 4 exits: *Mat x3 / [*Min]) -9/Materials (discovered 7 exits: *Mat x3 / *Min x2 / Sto x2) -8/Materials History --------- Turn | Location | Event 42 | -11/Scrapyard | Discovered new exit (range 16) 99 | -11/Scrapyard | Entered Materials 270 | -10/Materials | Discovered new exit (range 12) 306 | -10/Materials | Build established: Mutant 478 | -10/Materials | Core integrity fell below 50% 523 | -10/Materials | Lost 4 parts (1p2n1u) 546 | -10/Materials | Identified exit to Materials 568 | -10/Materials | Entered another Materials area 568 | -9/Materials | Evolved 2 slots: Propulsion x1, Utility x1 610 | -9/Materials | Identified exit to Materials 630 | -9/Materials | Identified exit to Mines 630 | -9/Materials | Identified exit to Storage 759 | -9/Materials | Entered another Materials area 759 | -8/Materials | Evolved 2 slots: Propulsion x1, Utility x1 858 | -8/Materials | Core integrity fell below 50% 861 | -8/Materials | Core integrity fell below 20% 866 | -8/Materials | Destroyed by Y-45 Defender with Beam Rifle Last Messages --------------- ALERT: Hostiles spotted, dispatching reinforcements to Terminal M005. K-01 Serf collects debris. Flight Unit destroyed. Dropped Sml. Storage Unit. Flight Unit destroyed. ALERT: Suspicious intruders detected, dispatching Cutter reinforcements to area. Dropped Lgt. Ion Engine. Acquired Machine Analyzer. Sensor Array destroyed. Critical hit (Burn: +37). Spread Laser destroyed. Nuclear Reactor explodes. Y-45 Defender suffers critical hit (Burn). Sml. Laser destroyed. C-17 Slicer destroyed. Acquired Surge Thruster. Critical hit (Burn: +37). Acquired 15 matter. Surge Thruster destroyed. Map ----- +----------------------------------------------------+ | ?????????????# #???#####+###########????????????? | | ?????????????# ######## + ! #????????????? | | ?????????????# # # # #????????????? | | ?????????????# ** ! # #????????????? | | ?????????????# ! + #????????????? | | ?????????????# ! # #????????????? | | ?????????????# =! # #????????????? | | ?????????????# #[ #????????????? | | ?????????????+ # * #????????????? | | ?????????????# # #????????????? | | ?????????????# + #########????????????? | | ?????????????#+####### g #????????????????????? | | ??????????????????????## #????????????????????? | | ???????????????????????# ##????????????????????? | | ???????????????????????# ! #?????????????????????? | | ???????????????????????# #?????????????????????? | | ???????????????????????# ########??????????????? | | ???????????????????????# # #??????????????? | | ???????????????????????# ; #??????????????? | | ???????????????????????#Y c# #??????????????? | | ???????????????????????# # #??????????????? | | ???????????????????????# #? #??????????????? | | ?????????????????#####?# #? #??????????????? | | ?????????????????""""" # #??#####??????????????? | | ?????????????????""""" #gc #?????????????????????? | | ?????????????????""""" + @ #?????????????????????? | | ???????????? #gg #?????????????????????? | | ??????????? / # #?????????????????????? | | ?????????? ! ! ?# #?######??????????????? | | ?################### #?# #? """ #??????????????? | | ?# #??????????##??# g# """ #??????????????? | | ?# #??????????????# # """ #??????????????? | | ?# """#??????????????# + #??????????????? | | ?# [ """#??????????????# # #??????????????? | | ?# """#??????????????# # #??????????????? | | ?# #?????????????## ########??????????????? | | ?####+################# #????????????????????? | | ?# #????????????????????? | | ?# #????????????????????? | | ?# #????????????????????? | | ?## #####+######+### #????????????????????? | | ??# #?? ???# #######????????????????????? | | ??# #?# ????#] "" #??????????????????????????? | | ??# #?# ????# T" #??????????????????????????? | | ??# #?# ?????# "" #??????????????????????????? | | ??# #?# ?????# #??????????????????????????? | | ??# #?#??????# #??????????????????????????? | | ??# #????????# ! #??????????????????????????? | | ??# #????????#######??????????????????????????? | | ??# #?????????????????????????????????????????? | +----------------------------------------------------+ Best States ------------- Heat Dissipation 31 Energy Generation 14 Energy Capacity 250 Matter Stores 300 Matter Capacity 300 Sight Range 16 Robot Scan Range 14 Terrain Scan Density 10 Evasion (%) 63 Item Schematics ----------------- None Robot Schematics ------------------ None Fabricated ------------ Nothing Alien Tech Used ----------------- None Achievements -------------- None Challenges ------------ None Game ------ Seed AbsorptionDroneLog Manual? 0 Play Time 00:17:50 Cumulative 50.6 hours Start 2022.12.18 @ 23:21:59 End 2022.12.18 @ 23:40:12 Sessions 1 Manual Loads 0 Difficulty Rogue Special Mode None Game No. 78 Rogue 78 Adventurer 0 Explorer 0 Win Type - Total 1 Types 1/0/0/0/0/0/0/0/0 Lore% 34 Gallery% 43 Achievement% 36 Wizard Run 0 Options --------- ASCII 0 Keyboard 0 Movement Arrows Keybinds 0 Fullscreen 2 Font 16/SmallcapsGlow Map View 76x50 Tactical HUD 0 Map Filters NONE Filters NONE Steam 1 RUN: 817712be-4a0e-4cc5-a108-67ffc98f6b3f